bitfinex/quotes_BTCUSD_20260315
["timestamp","ask_amount","ask_price","bid_price","bid_amount"]
[1773572885605,0.0007706,71724.0,71700.0,0.03839427]
[1773572885986,0.0007706,71724.0,71700.0,0.03939427]
[1773572886187,0.0007706,71724.0,71700.0,0.03839427]
[1773572887420,0.0007706,71724.0,71700.0,0.03939427]
[1773572887604,0.0007706,71724.0,71700.0,0.001]
[1773572887806,0.0007706,71724.0,71699.0,0.0002]
[1773572887987,0.0007706,71724.0,71700.0,0.001]
[1773572888819,0.0007706,71724.0,71699.0,0.0002]
[1773572889222,0.0007706,71724.0,71700.0,0.001]
[1773572889437,0.0009012,71724.0,71691.0,0.04311551]
[1773572889615,0.0009012,71724.0,71688.0,0.00136]
[1773572889616,0.0009012,71724.0,71693.0,0.04311551]
[1773572890629,0.03080155,71723.0,71700.0,0.001]
[1773572891062,0.03080155,71723.0,71693.0,0.04311551]
[1773572891202,0.03080155,71723.0,71693.0,0.04411551]
[1773572891410,0.00104,71722.0,71693.0,0.04411551]
[1773572891604,0.00104,71721.0,71693.0,0.04311551]
[1773572892554,0.00104,71721.0,71693.0,0.04411551]
[1773572892761,0.0013012,71721.0,71693.0,0.04411551]
[1773572893522,0.0013012,71721.0,71693.0,0.04311551]
[1773572893926,0.0013012,71721.0,71693.0,0.04411551]
[1773572894170,0.0013012,71721.0,71693.0,0.04311551]
[1773572895071,0.0013012,71721.0,71693.0,0.04411551]
[1773572896076,0.03080155,71720.0,71693.0,0.04411551]
[1773572896280,0.03080155,71720.0,71693.0,0.04431551]
[1773572896850,0.03106275,71720.0,71693.0,0.04431551]
[1773572897383,0.03106275,71720.0,71693.0,0.04331551]
[1773572897778,0.03106275,71720.0,71693.0,0.04431551]
[1773572900443,0.03106275,71720.0,71694.0,0.0014]
[1773572900584,0.03106275,71720.0,71695.0,0.032487]
[1773572900784,0.0002612,71720.0,71697.0,0.032487]
[1773572900993,0.03106275,71720.0,71697.0,0.032487]
[1773572901197,0.03106275,71720.0,71693.0,0.0012]
[1773572901401,0.03106275,71720.0,71694.0,0.00136]
[1773572901595,0.03106275,71720.0,71694.0,0.033847]
[1773572901799,0.03106275,71720.0,71695.0,0.001]
[1773572902930,0.03106275,71720.0,71697.0,0.0002]
[1773572904016,0.00128,71719.0,71697.0,0.03106431]
[1773572904353,0.00128,71718.0,71697.0,0.03106431]
[1773572904517,0.00128,71718.0,71699.0,0.03086431]
[1773572904927,0.0014106,71718.0,71699.0,0.03086431]
[1773572905646,0.0001306,71718.0,71699.0,0.03086431]
[1773572910070,0.0001306,71718.0,71699.0,0.03186431]
[1773572910370,0.0001306,71718.0,71699.0,0.03086431]
[1773572910770,0.0001306,71718.0,71699.0,0.03186431]
[1773572912173,0.0001306,71718.0,71701.0,0.03086431]
[1773572912377,0.03310229,71717.0,71702.0,0.00136]
[1773572912580,0.03310229,71717.0,71700.0,0.00136]
[1773572912779,0.03310229,71717.0,71701.0,0.00136]
[1773572912976,0.03323289,71717.0,71701.0,0.00136]
[1773572913182,0.03323289,71717.0,71701.0,0.00236]
[1773572913559,0.03323289,71717.0,71701.0,0.00136]
[1773572913758,0.03323289,71717.0,71700.0,0.001]
[1773572914100,0.03323289,71717.0,71694.0,0.00136]
[1773572914593,0.03323289,71717.0,71701.0,0.001]
[1773572914810,0.03323289,71717.0,71694.0,0.00136]
[1773572916921,0.00136,71716.0,71694.0,0.00136]
[1773572917212,0.04977025,71715.0,71694.0,0.00136]
[1773572917934,0.04990085,71715.0,71694.0,0.00136]
[1773572919306,0.0001306,71715.0,71694.0,0.00136]
[1773572925121,0.06837363,71715.0,71694.0,0.00136]
[1773572929944,0.06837363,71715.0,71693.0,0.0002]
[1773572937231,0.08875441,71713.0,71693.0,0.0002]
[1773572938052,0.08888501,71713.0,71693.0,0.0002]
[1773572940461,0.08888501,71713.0,71692.0,0.0002]
[1773572940462,0.08875441,71713.0,71687.0,0.00056]
[1773572940651,0.08971041,71713.0,71687.0,0.00056]
[1773572944218,0.08971041,71713.0,71658.0,0.0004]
[1773572944422,5e-05,71699.0,71660.0,0.03234816]
[1773572944718,0.08889965,71697.0,71661.0,0.809659]
[1773572945585,0.08896934,71697.0,71661.0,0.809659]
[1773572946995,0.08896934,71697.0,71659.0,0.81872]
[1773572947412,0.08896934,71697.0,71661.0,0.0002]
[1773572947614,0.08896934,71697.0,71662.0,0.70594]
[1773572951230,0.00034,71706.0,71669.0,0.01616473]
[1773572951410,0.000203,71709.0,71671.0,3.533326]
[1773572951616,0.000203,71709.0,71672.0,0.00092]
[1773572951954,0.000203,71709.0,71674.0,2.067164]
[1773572952164,0.000203,71709.0,71674.0,1.843401]
[1773572952342,0.000203,71709.0,71674.0,1.627057]
[1773572952511,0.000203,71709.0,71674.0,0.545756]
[1773572952717,0.04465283,71709.0,71674.0,0.545756]
[1773572953758,0.04465283,71709.0,71675.0,0.001]
[1773572954058,0.04465283,71709.0,71676.0,0.793866]
[1773572954430,0.04465283,71709.0,71676.0,0.751192]
[1773572956163,0.04465283,71709.0,71676.0,0.155603]
[1773572956343,0.04465283,71709.0,71677.0,0.14817]
[1773572957334,0.04465283,71709.0,71676.0,0.473843]
[1773572957528,0.04465283,71709.0,71678.0,0.429055]
[1773572957749,0.04465283,71709.0,71678.0,0.149386]
[1773572957934,0.04465283,71709.0,71678.0,0.100153]
[1773572958668,0.04465283,71709.0,71677.0,0.002]
[1773572959110,0.04465283,71709.0,71677.0,0.001]
[1773572959265,0.04465283,71709.0,71678.0,0.00116]
[1773572959843,0.04465283,71709.0,71678.0,0.00216]
[1773572960456,0.04465283,71709.0,71678.0,0.00316]
[1773572965141,0.04487284,71709.0,71678.0,0.00316]
[1773572966342,0.04487284,71709.0,71678.0,0.002]
[1773572966545,0.04487284,71709.0,71679.0,0.00128]
[1773572967638,0.04487284,71709.0,71679.0,0.00328]
[1773572969138,0.04487284,71709.0,71679.0,0.00228]
[1773572969351,0.04487284,71709.0,71679.0,0.00128]
[1773572969557,0.04487284,71709.0,71680.0,0.00132]
[1773572970768,0.04487284,71709.0,71680.0,0.00232]
[1773572971425,0.04487284,71709.0,71680.0,0.001]
[1773572972034,0.04487284,71709.0,71681.0,0.03346671]
[1773572973483,0.04487284,71709.0,71681.0,0.03546671]
[1773572973988,0.04487284,71709.0,71681.0,0.03346671]
[1773572974783,0.04487284,71709.0,71679.0,0.00132]
[1773572975151,0.03443642,71707.0,71680.0,0.03346671]
[1773572975667,0.03443642,71707.0,71681.0,0.001]
[1773572975874,0.03443642,71707.0,71680.0,0.03346671]
[1773572976767,0.03443642,71707.0,71681.0,0.001]
[1773572977159,0.03443642,71707.0,71681.0,0.03446671]
[1773572978300,0.0014,71706.0,71681.0,0.03346671]
[1773572978494,0.03443642,71705.0,71681.0,0.03346671]
[1773572978676,0.03397056,71705.0,71681.0,0.03346671]
[1773572979117,0.03397056,71705.0,71681.0,0.03446671]
[1773572979295,0.0014,71704.0,71681.0,0.03446671]
[1773572979497,0.03583642,71704.0,71681.0,0.03346671]
[1773572980304,0.14002999,71704.0,71681.0,0.03346671]
[1773572980507,0.0014,71704.0,71681.0,0.03346671]
[1773572980709,0.03583642,71704.0,71681.0,0.03346671]
[1773572982923,0.03443642,71703.0,71681.0,0.03346671]
[1773572987872,0.03443642,71703.0,71683.0,0.03346671]
[1773572988829,0.03443642,71703.0,71660.0,5e-05]
[1773572988830,0.13903599,71703.0,71684.0,0.0014]
[1773572989035,0.03491227,71703.0,71685.0,0.0014]
[1773572989232,0.03491227,71703.0,71683.0,0.03346671]
[1773572989233,0.03491227,71703.0,71686.0,0.00136]
[1773572990032,0.03443642,71702.0,71686.0,0.00136]
[1773572990574,0.03484242,71702.0,71686.0,0.00136]
[1773572992786,0.03584242,71702.0,71686.0,0.00136]
[1773572993786,0.03484242,71702.0,71686.0,0.00136]
[1773572994184,0.03584242,71702.0,71686.0,0.00136]
[1773572994389,0.03484242,71702.0,71686.0,0.00136]
[1773572994714,0.03584242,71702.0,71686.0,0.00136]
[1773572998798,0.14003599,71702.0,71686.0,0.00136]
[1773572998999,0.03477107,71701.0,71686.0,0.00136]
[1773572999220,0.13862999,71701.0,71686.0,0.00136]
[1773572999401,0.03477107,71700.0,71686.0,0.00136]
[1773572999599,0.03517707,71700.0,71686.0,0.00136]
[1773573000297,0.03477107,71699.0,71686.0,0.00136]
[1773573000687,0.03517707,71699.0,71686.0,0.00136]
[1773573001032,0.17380706,71699.0,71686.0,0.00136]
[1773573001217,0.13862999,71698.0,71686.0,0.00136]
[1773573001877,0.0005398,71698.0,71686.0,0.00136]
[1773573002308,0.03531087,71698.0,71686.0,0.00136]
[1773573003535,0.17494086,71698.0,71686.0,0.00136]
[1773573003757,0.13862999,71697.0,71686.0,0.00136]
[1773573003941,0.03531087,71698.0,71686.0,0.00136]
[1773573004145,0.03631087,71698.0,71686.0,0.00136]
[1773573004341,0.03531087,71698.0,71686.0,0.00136]
[1773573004661,0.03631087,71698.0,71686.0,0.00136]
[1773573004960,0.17394086,71698.0,71686.0,0.00136]
[1773573005194,0.03477107,71696.0,71686.0,0.00136]
[1773573005363,0.0005398,71698.0,71686.0,0.00136]
[1773573005565,0.03477107,71697.0,71686.0,0.00136]
[1773573005730,0.03531087,71697.0,71686.0,0.00136]
[1773573006354,0.17394086,71697.0,71686.0,0.00136]
[1773573006667,0.13862999,71696.0,71686.0,0.00136]
[1773573007256,0.0005398,71697.0,71686.0,0.00136]
[1773573007490,0.03477107,71696.0,71686.0,0.00136]
[1773573007874,0.03631087,71696.0,71686.0,0.00136]
[1773573008079,0.03731087,71696.0,71686.0,0.00136]
[1773573008580,0.03631087,71696.0,71684.0,0.00136]
[1773573009178,0.03531087,71696.0,71684.0,0.00136]
[1773573009578,0.03631087,71696.0,71684.0,0.00136]
[1773573009781,0.03531087,71696.0,71684.0,0.00136]
[1773573010184,0.03631087,71696.0,71684.0,0.00136]
[1773573010381,0.03531087,71696.0,71684.0,0.00136]
[1773573010756,0.03631087,71696.0,71684.0,0.00136]
[1773573012407,0.03731087,71696.0,71684.0,0.00136]
[1773573012708,0.03531087,71696.0,71684.0,0.00136]
[1773573012905,0.03631087,71696.0,71684.0,0.00136]
[1773573013203,0.03531087,71696.0,71684.0,0.00136]
[1773573013508,0.03631087,71696.0,71684.0,0.00136]
[1773573019121,0.0015398,71696.0,71684.0,0.00136]
[1773573019524,0.03631087,71696.0,71684.0,0.00136]
[1773573021839,0.03531087,71696.0,71684.0,0.00136]
[1773573022042,0.03631087,71696.0,71684.0,0.00136]
[1773573022371,0.03531087,71696.0,71684.0,0.00136]
[1773573022736,0.03631087,71696.0,71684.0,0.00136]
[1773573023234,0.03653088,71696.0,71684.0,0.00136]
[1773573025236,0.00175981,71696.0,71684.0,0.00136]
[1773573025435,0.00028986,71703.0,71685.0,0.03426667]
[1773573025670,0.00034,71706.0,71685.0,0.03426667]
[1773573025928,0.00034,71706.0,71685.0,0.03433652]
[1773573026763,0.0001973,71707.0,71685.0,0.03433652]
[1773573026963,0.00046731,71718.0,71685.0,0.03433652]
[1773573027985,0.00012894,71714.0,71685.0,0.03433652]
[1773573028389,0.00012894,71714.0,71685.0,0.03533652]
[1773573029186,0.00012894,71714.0,71685.0,0.03433652]
[1773573029476,0.00012894,71714.0,71685.0,0.03533652]
[1773573029685,0.00012894,71714.0,71685.0,0.03633652]
[1773573031700,0.00034895,71714.0,71685.0,0.03633652]
[1773573035455,0.00022001,71714.0,71685.0,0.03633652]
[1773573036033,0.03636111,71714.0,71685.0,0.03633652]
[1773573038176,0.03636111,71714.0,71685.0,0.03533652]
[1773573038380,0.03636111,71714.0,71685.0,0.03433652]
[1773573038583,0.03636111,71714.0,71685.0,0.03533652]
[1773573038779,0.03636111,71714.0,71685.0,0.03433652]
[1773573038942,0.00022001,71714.0,71687.0,0.02675666]
[1773573042746,0.00022001,71714.0,71688.0,0.12433]
[1773573042940,0.00022001,71714.0,71692.0,1.499639]
[1773573043108,0.00022001,71714.0,71693.0,0.02820623]
[1773573050210,0.00034895,71714.0,71693.0,0.02820623]
[1773573060336,0.03681867,71714.0,71693.0,0.02680623]
[1773573060541,0.03681867,71714.0,71694.0,0.0014]
[1773573061897,0.03681867,71714.0,71694.0,0.03786977]
[1773573065360,0.03668973,71714.0,71694.0,0.03786977]
[1773573068721,0.03768973,71714.0,71694.0,0.03786977]
[1773573070939,0.03668973,71714.0,71694.0,0.03786977]
[1773573071335,0.03768973,71714.0,71694.0,0.03786977]
[1773573071534,0.03668973,71714.0,71694.0,0.03646977]
[1773573071741,0.03668973,71714.0,71695.0,0.0014]
[1773573071923,0.03768973,71714.0,71695.0,0.0014]
[1773573072774,0.03668973,71714.0,71695.0,0.0014]
[1773573072965,0.03768973,71714.0,71693.0,0.20921921]
[1773573073126,0.03768973,71714.0,71694.0,0.0014]
[1773573074277,0.03668973,71714.0,71694.0,0.0014]
[1773573074477,0.03768973,71714.0,71694.0,0.0014]
[1773573074878,0.03668973,71714.0,71694.0,0.0014]
[1773573075072,0.03768973,71714.0,71694.0,0.0014]
[1773573075898,0.03768973,71714.0,71694.0,0.0016]
[1773573077304,0.03668973,71714.0,71694.0,0.0016]
[1773573077706,0.03768973,71714.0,71694.0,0.0016]
[1773573082698,0.03868973,71714.0,71694.0,0.0016]
[1773573083311,0.03868973,71714.0,71694.0,0.0002]
[1773573083511,0.03768973,71714.0,71695.0,0.0014]
[1773573084183,0.03868973,71714.0,71695.0,0.0014]
[1773573084531,0.03768973,71714.0,71695.0,0.0014]
[1773573084708,0.03634996,71712.0,71696.0,0.0014]
[1773573087528,0.03734996,71712.0,71696.0,0.0014]
[1773573087746,0.03634996,71712.0,71696.0,0.0014]
[1773573088135,0.03834996,71712.0,71696.0,0.0014]
[1773573088344,0.03734996,71712.0,71696.0,0.0014]
[1773573088540,0.03634996,71712.0,71695.0,0.0014]
[1773573089258,0.03634996,71712.0,71693.0,0.0014]
[1773573089762,0.03648696,71712.0,71673.0,0.000337]
[1773573089972,0.03634996,71711.0,71683.0,0.0014]
[1773573090172,0.03634996,71709.0,71684.0,0.03670725]
[1773573090927,0.0014,71708.0,71684.0,0.03670725]
[1773573091129,0.03774996,71708.0,71684.0,0.03670725]
[1773573091331,0.03774996,71708.0,71683.0,0.0014]
[1773573091332,0.0002443,71712.0,71686.0,0.03670725]
[1773573091753,0.03659426,71712.0,71686.0,0.03670725]
[1773573091956,0.001,71709.0,71686.0,0.03670725]
[1773573092590,0.001137,71709.0,71686.0,0.03670725]
[1773573092740,0.001137,71709.0,71683.0,0.0014]
[1773573092741,0.001137,71709.0,71688.0,0.0002]
[1773573092981,0.000137,71709.0,71689.0,0.03670725]
[1773573093914,0.001137,71709.0,71689.0,0.03670725]
[1773573094220,0.000137,71709.0,71689.0,0.03670725]
[1773573094571,0.001137,71709.0,71689.0,0.03670725]
[1773573095328,0.00012894,71708.0,71689.0,0.03670725]
[1773573095533,0.00026594,71708.0,71689.0,0.03670725]
[1773573096726,0.00126594,71708.0,71689.0,0.03670725]
[1773573097586,0.0001073,71712.0,71689.0,0.03670725]
[1773573097793,0.00022001,71714.0,71689.0,0.03670725]
[1773573097988,0.00022001,71714.0,71690.0,0.03670725]
[1773573098242,0.00022001,71714.0,71694.0,0.03670725]
[1773573104718,0.00022001,71714.0,71696.0,0.03744905]
[1773573107512,0.00122001,71714.0,71696.0,0.03744905]
[1773573107886,0.00022001,71714.0,71695.0,0.0014]
[1773573108290,0.00022001,71714.0,71696.0,0.0014]
[1773573110700,0.00122001,71714.0,71696.0,0.0014]
[1773573111114,0.00022001,71714.0,71696.0,0.0014]
[1773573111337,0.00122001,71714.0,71692.0,0.03739577]
[1773573111542,0.00122001,71714.0,71697.0,0.0014]
[1773573111790,0.00022001,71714.0,71697.0,0.0014]
[1773573113385,0.00122001,71714.0,71697.0,0.0014]
[1773573113559,0.00022001,71714.0,71697.0,0.0014]
[1773573113961,0.00122001,71714.0,71697.0,0.0014]
[1773573114295,0.00122001,71714.0,71698.0,0.0014]
[1773573115297,0.00022001,71714.0,71698.0,0.0014]
[1773573116604,0.00122001,71714.0,71698.0,0.0014]
[1773573117218,0.00122001,71714.0,71699.0,0.03712077]
[1773573117787,0.00022001,71714.0,71699.0,0.03712077]
[1773573117987,0.00122001,71714.0,71699.0,0.03722807]
[1773573118377,0.00022001,71714.0,71699.0,0.03722807]
[1773573119651,0.00122001,71714.0,71699.0,0.03722807]
[1773573120152,0.00022001,71714.0,71699.0,0.03722807]
[1773573120807,0.00122001,71714.0,71699.0,0.03722807]
[1773573121253,0.00022001,71714.0,71699.0,0.03722807]
[1773573121456,0.00122001,71714.0,71699.0,0.03722807]
[1773573122638,0.00022001,71714.0,71699.0,0.03722807]
[1773573123026,0.00122001,71714.0,71699.0,0.03722807]
[1773573123335,0.00022001,71714.0,71699.0,0.03722807]
[1773573123524,0.00122001,71714.0,71699.0,0.03722807]
[1773573123926,0.00053701,71714.0,71699.0,0.03722807]
[1773573124131,0.00153701,71714.0,71699.0,0.03722807]
[1773573124385,0.00053701,71714.0,71699.0,0.03722807]
[1773573125836,0.00253701,71714.0,71699.0,0.03722807]
[1773573126042,0.00153701,71714.0,71699.0,0.03722807]
[1773573126393,0.00253701,71714.0,71699.0,0.03722807]
[1773573126594,0.00153701,71714.0,71699.0,0.03722807]
[1773573126941,0.00253701,71714.0,71699.0,0.03722807]
[1773573127115,0.00153701,71714.0,71699.0,0.03722807]
[1773573127315,0.00153701,71714.0,71700.0,0.0014]
[1773573127316,0.00053701,71714.0,71700.0,0.0014]
[1773573127840,0.00153701,71714.0,71700.0,0.0014]
[1773573128040,0.03453413,71713.0,71700.0,0.0014]
[1773573128411,0.03453413,71713.0,71701.0,0.0014]
[1773573128625,0.03453413,71713.0,71692.0,0.03655166]
[1773573128832,0.03485113,71713.0,71674.0,0.03684661]
[1773573129034,0.03485113,71713.0,71677.0,1.000972]
[1773573129381,0.03485113,71713.0,71695.0,0.03704661]
[1773573129588,0.03485113,71713.0,71696.0,0.0014]
[1773573129722,0.001317,71713.0,71696.0,0.0014]
[1773573129921,0.001317,71713.0,71697.0,0.0014]
[1773573129922,0.000317,71713.0,71697.0,0.0014]
[1773573130440,0.000317,71713.0,71698.0,0.0014]
[1773573130845,0.001317,71713.0,71695.0,0.03704661]
[1773573131052,0.001317,71713.0,71696.0,0.0014]
[1773573131371,0.002317,71713.0,71696.0,0.0014]
[1773573131867,0.001317,71713.0,71696.0,0.0014]
[1773573132170,0.000317,71713.0,71696.0,0.0014]
[1773573132352,0.001317,71713.0,71696.0,0.0014]
[1773573132753,0.000317,71713.0,71696.0,0.0014]
[1773573134347,0.000317,71713.0,71695.0,0.0002]
[1773573134574,0.000317,71713.0,71696.0,0.00136]
[1773573136459,0.000317,71713.0,71696.0,0.00156]
[1773573136986,0.000317,71713.0,71696.0,0.03914253]
[1773573137189,0.000317,71713.0,71697.0,0.00132]
[1773573138155,0.000317,71713.0,71698.0,0.00132]
[1773573138597,0.000317,71713.0,71699.0,0.00136]
[1773573139217,0.000317,71713.0,71700.0,0.00136]
[1773573139606,0.000317,71713.0,71701.0,0.00136]
[1773573140112,0.000317,71713.0,71696.0,0.03778253]
[1773573140314,0.000317,71713.0,71697.0,0.00136]
[1773573140614,0.000317,71713.0,71698.0,0.00136]
[1773573142022,0.000317,71713.0,71698.0,0.03884046]
[1773573143539,0.00053701,71713.0,71698.0,0.03884046]
[1773573147651,0.00062181,71713.0,71698.0,0.03884046]
[1773573168597,0.00062181,71713.0,71698.0,0.03904046]
[1773573169481,0.00062181,71713.0,71698.0,0.0002]
[1773573169686,0.00062181,71713.0,71699.0,0.0014]
[1773573170641,0.00062181,71713.0,71700.0,0.0014]
[1773573170853,0.00162181,71713.0,71700.0,0.0014]
[1773573171007,0.00062181,71713.0,71700.0,0.0014]
[1773573171546,0.00162181,71713.0,71700.0,0.0014]
[1773573172848,0.0051738,71713.0,71701.0,0.0014]
[1773573172999,0.0061738,71713.0,71701.0,0.0014]
[1773573173204,0.00162181,71713.0,71701.0,0.0014]
[1773573173853,0.00062181,71713.0,71701.0,0.0014]
[1773573174060,0.00262181,71713.0,71701.0,0.0014]
[1773573174414,0.00162181,71713.0,71701.0,0.0014]
[1773573174813,0.00262181,71713.0,71701.0,0.0014]
[1773573175150,0.00711283,71713.0,71701.0,0.0014]
[1773573175358,0.00611283,71713.0,71701.0,0.0014]
[1773573175742,0.14488062,71713.0,71701.0,0.0014]
[1773573176087,0.14388062,71713.0,71701.0,0.0014]
[1773573176229,0.13876779,71712.0,71701.0,0.0014]
[1773573176628,0.00511283,71713.0,71701.0,0.0014]
[1773573176832,0.00611283,71713.0,71701.0,0.0014]
[1773573177145,0.00511283,71713.0,71701.0,0.0014]
[1773573177667,0.001,71712.0,71701.0,0.0014]
[1773573177869,0.00611283,71713.0,71701.0,0.0014]
[1773573178226,0.14488062,71713.0,71701.0,0.0014]
[1773573178434,0.13876779,71712.0,71701.0,0.0014]
[1773573178840,0.001,71712.0,71701.0,0.0014]
[1773573179653,0.002,71712.0,71701.0,0.0014]
[1773573179842,0.001,71712.0,71701.0,0.0014]
[1773573180371,0.002,71712.0,71701.0,0.0014]
[1773573180668,0.001,71712.0,71701.0,0.0014]
[1773573181036,0.002,71712.0,71701.0,0.0014]
[1773573181555,0.001,71712.0,71701.0,0.0014]
[1773573181870,0.002,71712.0,71701.0,0.0014]
[1773573182079,0.001,71712.0,71701.0,0.0014]
[1773573182255,0.002,71712.0,71701.0,0.0014]
[1773573182627,0.001,71712.0,71701.0,0.0014]
[1773573182824,0.002,71712.0,71701.0,0.0014]
[1773573183023,0.001,71712.0,71701.0,0.0014]
[1773573183282,0.00511283,71713.0,71701.0,0.0014]
[1773573183462,0.002,71712.0,71701.0,0.0014]
[1773573183791,0.001,71712.0,71701.0,0.0014]
[1773573184090,0.00511283,71713.0,71701.0,0.0014]
[1773573184307,0.001,71712.0,71701.0,0.0014]
[1773573184786,0.03648783,71713.0,71699.0,0.0014]
[1773573185090,0.002,71712.0,71699.0,0.0014]
[1773573185289,0.001,71712.0,71693.0,0.03485171]
[1773573185489,0.03686602,71712.0,71694.0,0.0014]
[1773573185653,0.03786602,71712.0,71694.0,0.0014]
[1773573186076,0.03586602,71712.0,71694.0,0.0014]
[1773573186276,0.03686602,71712.0,71694.0,0.0014]
[1773573187720,0.03826602,71712.0,71694.0,0.0014]
[1773573188198,0.03726602,71712.0,71694.0,0.0014]
[1773573188968,0.03826602,71712.0,71694.0,0.0014]
[1773573189166,0.03826602,71712.0,71694.0,0.0002]
[1773573189365,0.03726602,71712.0,71694.0,0.0002]
[1773573189561,0.03926602,71712.0,71694.0,0.0002]
[1773573189988,0.03826602,71712.0,71694.0,0.0002]
[1773573190519,0.03926602,71712.0,71694.0,0.0002]
[1773573190968,0.03826602,71712.0,71694.0,0.0002]
[1773573192095,0.03726602,71712.0,71694.0,0.0002]
[1773573192289,0.03826602,71712.0,71694.0,0.0002]
[1773573192503,0.03926602,71712.0,71694.0,0.0002]
[1773573192645,0.03726602,71712.0,71694.0,0.0002]
[1773573193048,0.03926602,71712.0,71694.0,0.0002]
[1773573193298,0.03826602,71712.0,71694.0,0.0002]
[1773573193550,0.03726602,71712.0,71694.0,0.0002]
[1773573193878,0.03926602,71712.0,71694.0,0.0002]
[1773573194400,0.03926602,71712.0,71695.0,0.0014]
[1773573194599,0.03926602,71712.0,71694.0,0.0002]
[1773573194600,0.03586602,71711.0,71694.0,0.0002]
[1773573194804,0.03586602,71711.0,71694.0,0.0016]
[1773573195265,0.03586602,71710.0,71694.0,0.0016]
[1773573195691,0.03605302,71710.0,71694.0,0.0016]
[1773573196652,0.03705302,71710.0,71694.0,0.0002]
[1773573196824,0.03605302,71710.0,71694.0,0.0016]
[1773573196974,0.03705302,71710.0,71694.0,0.0016]
[1773573197176,0.03586602,71709.0,71694.0,0.0016]
[1773573197376,0.03586602,71708.0,71694.0,0.0016]
[1773573197582,0.03605302,71708.0,71694.0,0.0002]
[1773573197828,0.03605302,71708.0,71694.0,0.0016]
[1773573198067,0.000187,71708.0,71694.0,0.0016]
[1773573198250,0.03586602,71707.0,71694.0,0.0002]
[1773573198685,0.03605302,71707.0,71686.0,0.0002]
[1773573198995,0.03586602,71706.0,71686.0,0.0016]
[1773573199236,0.0014,71705.0,71686.0,0.0016]
[1773573199420,0.03726602,71705.0,71686.0,0.0016]
[1773573199676,0.03745302,71705.0,71686.0,0.0016]
[1773573200424,0.03727398,71705.0,71686.0,0.0016]
[1773573200824,0.03709493,71705.0,71687.0,0.03485171]
[1773573201684,0.00222891,71705.0,71687.0,0.03485171]
[1773573202059,0.00322891,71705.0,71687.0,0.03485171]
[1773573203117,0.00222891,71705.0,71687.0,0.03485171]
[1773573203385,0.00322891,71705.0,71687.0,0.03485171]
[1773573203798,0.00709357,71704.0,71686.0,0.0002]
[1773573205191,0.00809357,71704.0,71685.0,0.00136]
[1773573205398,0.00709357,71704.0,71685.0,0.00136]
[1773573205698,0.00909357,71704.0,71685.0,0.00136]
[1773573205892,0.00909357,71704.0,71683.0,0.0002]
[1773573206094,0.00909357,71704.0,71684.0,0.00136]
[1773573206095,0.14575455,71704.0,71684.0,0.00136]
[1773573206257,0.13866098,71703.0,71684.0,0.00136]
[1773573206458,0.00709357,71704.0,71684.0,0.00136]
[1773573206459,0.00909357,71704.0,71684.0,0.00136]
[1773573207530,0.00698738,71703.0,71684.0,0.00136]
[1773573209031,0.00798738,71703.0,71684.0,0.00136]
[1773573209747,0.00798738,71703.0,71683.0,0.03450364]
[1773573210042,0.00798738,71703.0,71683.0,0.03586364]
[1773573210245,0.00798738,71703.0,71683.0,0.03450364]
[1773573210442,0.00798738,71703.0,71683.0,0.03586364]
[1773573210810,0.00698738,71703.0,71683.0,0.03586364]
[1773573211211,0.00798738,71703.0,71683.0,0.03586364]
[1773573211526,0.00798738,71703.0,71684.0,0.0002]
[1773573212458,0.14547116,71703.0,71684.0,0.0002]
[1773573212670,0.13866154,71702.0,71684.0,0.0002]
[1773573212864,0.00677438,71700.0,71679.0,0.0002]
[1773573213014,0.13866154,71700.0,71676.0,0.0002]
[1773573213221,0.00677438,71701.0,71676.0,0.0002]
[1773573213419,0.00677438,71700.0,71676.0,0.0002]
[1773573213740,0.00674438,71701.0,71677.0,0.03430364]
[1773573214069,0.0014,71700.0,71677.0,0.03430364]
[1773573216285,0.00807439,71700.0,71677.0,0.03430364]
[1773573216488,0.14673593,71700.0,71677.0,0.03430364]
[1773573216689,0.14006154,71700.0,71677.0,0.03430364]
[1773573216889,0.0014,71699.0,71677.0,0.03430364]
[1773573217201,0.0014,71698.0,71677.0,0.03430364]
[1773573218171,0.0024,71698.0,71677.0,0.03430364]
[1773573218558,0.0024,71698.0,71677.0,0.03450364]
[1773573220483,0.14106154,71698.0,71677.0,0.03450364]
[1773573220837,0.13866154,71697.0,71677.0,0.03450364]
[1773573220985,0.0024,71698.0,71677.0,0.03450364]
[1773573221386,0.14106154,71698.0,71677.0,0.03450364]
[1773573221589,0.13866154,71697.0,71677.0,0.03450364]
[1773573221814,0.0024,71698.0,71677.0,0.03450364]
[1773573223014,0.03441515,71697.0,71676.0,0.0002]
[1773573223506,0.03541515,71697.0,71676.0,0.0002]
[1773573223698,0.03541515,71697.0,71676.0,0.03450364]
[1773573223895,0.03441515,71697.0,71676.0,0.03450364]
[1773573224100,0.03441515,71696.0,71676.0,0.03450364]
[1773573224867,0.03441515,71696.0,71676.0,0.0002]
[1773573225080,0.0014,71697.0,71677.0,0.03430364]
[1773573225282,0.001,71696.0,71677.0,0.03430364]
[1773573225700,0.0024,71696.0,71677.0,0.03430364]
[1773573226054,0.001,71696.0,71677.0,0.03430364]
[1773573226250,0.0024,71696.0,71677.0,0.03430364]
[1773573226470,0.0014,71696.0,71677.0,0.03430364]
[1773573226788,0.00082092,71696.0,71677.0,0.03430364]
[1773573226994,0.00022001,71700.0,71677.0,0.03430364]
[1773573227199,0.0014,71698.0,71677.0,0.03430364]
[1773573227400,0.001,71696.0,71677.0,0.03430364]
[1773573227645,0.0014,71699.0,71677.0,0.03430364]
[1773573227973,0.001,71696.0,71677.0,0.03430364]
[1773573228373,0.0014,71699.0,71679.0,0.03430364]
[1773573228772,0.03441515,71698.0,71676.0,0.0002]
[1773573229046,0.03441515,71698.0,71677.0,0.0014]
[1773573229681,0.03441515,71698.0,71677.0,0.03570364]
[1773573230837,0.03541515,71698.0,71677.0,0.03570364]
[1773573234066,0.03441515,71698.0,71677.0,0.03570364]
[1773573234212,0.17292843,71698.0,71677.0,0.03570364]
[1773573234559,0.03406653,71697.0,71677.0,0.03570364]
[1773573235130,0.13851328,71699.0,71677.0,0.03570364]
[1773573235327,0.13851328,71699.0,71673.0,0.000203]
[1773573235328,0.0014,71699.0,71673.0,0.000203]
[1773573235554,0.0014,71699.0,71674.0,0.02108172]
[1773573235555,0.13991328,71699.0,71674.0,0.02108172]